[Event "Titled Tuesday Blitz October 31 Late 2023"]
[White "Al-Tarboush, Ward"]
[Black "Bokros, Albert"]
[WhiteFideId "7601450"]
[BlackFideId "710458"]
[WhiteElo "2624"]
[BlackElo "2346"]
[Result "1-0"]
[Round "11"]
[TimeControl "180+1"]
[Date "2023.10.31"]
[WhiteClock "0:02:50"]
[BlackClock "0:01:56"]
[Board "74"]

1. e4 {[%clk 0:02:59]}  Nf6 {[%clk 0:02:59]} 2. e5 {[%clk 0:02:59]}  Nd5 {[%clk 0:02:59]} 3. d4 {[%clk 0:02:59]}  d6 {[%clk 0:02:59]} 4. Nf3 {[%clk 0:02:59]}  Nb6 {[%clk 0:02:58]} 5. Bd3 {[%clk 0:02:59]}  g6 {[%clk 0:02:58]} 6. O-O {[%clk 0:02:59]}  Bg7 {[%clk 0:02:58]} 7. exd6 {[%clk 0:02:58]}  cxd6 {[%clk 0:02:53]} 8. h3 {[%clk 0:02:59]}  O-O {[%clk 0:02:53]} 9. c4 {[%clk 0:02:59]}  Nc6 {[%clk 0:02:51]} 10. Be3 {[%clk 0:02:59]}  d5 {[%clk 0:02:44]} 11. c5 {[%clk 0:02:59]}  Nc4 {[%clk 0:02:44]} 12. Bxc4 {[%clk 0:02:53]}  dxc4 {[%clk 0:02:44]} 13. Nc3 {[%clk 0:02:54]}  Bf5 {[%clk 0:02:41]} 14. d5 {[%clk 0:02:54]}  Nb4 {[%clk 0:02:40]} 15. Bd4 {[%clk 0:02:54]}  Bd3 {[%clk 0:02:35]} 16. Bxg7 {[%clk 0:02:53]}  Kxg7 {[%clk 0:02:36]} 17. Re1 {[%clk 0:02:53]}  Nc2 {[%clk 0:02:34]} 18. Ne5 {[%clk 0:02:53]}  Nxe1 {[%clk 0:02:32]} 19. Qxe1 {[%clk 0:02:53]}  f6 {[%clk 0:02:26]} 20. Nf3 {[%clk 0:02:52]}  Rc8 {[%clk 0:02:22]} 21. Nd4 {[%clk 0:02:53]}  Kf7 {[%clk 0:02:18]} 22. Qe6+ {[%clk 0:02:52]}  Kg7 {[%clk 0:02:17]} 23. Qe3 {[%clk 0:02:52]}  Kf7 {[%clk 0:02:16]} 24. Ne6 {[%clk 0:02:51]}  Qa5 {[%clk 0:02:12]} 25. Qh6 {[%clk 0:02:51]}  g5 {[%clk 0:01:58]} 26. Qg7+ {[%clk 0:02:50]}  Ke8 {[%clk 0:01:59]} 27. Qxf8+ {[%clk 0:02:51]}  Kd7 {[%clk 0:01:58]} 28. c6+ {[%clk 0:02:50]}  bxc6 {[%clk 0:01:59]} 29. dxc6+ {[%clk 0:02:51]}  Kxe6 {[%clk 0:01:59]} 30. Qxc8+ {[%clk 0:02:51]}  Kf7 {[%clk 0:01:56]} 31. Re1 {[%clk 0:02:50]} 1-0


[Site "https://www.chess.com"]

[Event "Titled Tuesday Blitz October 31 Late 2023"]
[White "Flameboard08"]
[Black "Kujawski, Adam"]
[BlackFideId "1100920"]
[WhiteElo "2573"]
[BlackElo "2341"]
[Result "1-0"]
[Round "11"]
[TimeControl "180+1"]
[Date "2023.10.31"]
[WhiteClock "0:00:04"]
[BlackClock "0:00:19"]
[Board "75"]

1. f4 {[%clk 0:03:00]}  d5 {[%clk 0:02:59]} 2. Nf3 {[%clk 0:02:59]}  c5 {[%clk 0:02:58]} 3. d3 {[%clk 0:02:59]}  Nc6 {[%clk 0:02:58]} 4. g3 {[%clk 0:02:59]}  g6 {[%clk 0:02:58]} 5. Bg2 {[%clk 0:03:00]}  Bg7 {[%clk 0:02:58]} 6. O-O {[%clk 0:03:00]}  Nf6 {[%clk 0:02:57]} 7. Nbd2 {[%clk 0:02:59]}  d4 {[%clk 0:02:54]} 8. e4 {[%clk 0:02:56]}  dxe3 {[%clk 0:02:53]} 9. Nc4 {[%clk 0:02:57]}  Bd7 {[%clk 0:02:40]} 10. Bxe3 {[%clk 0:02:54]}  b6 {[%clk 0:02:39]} 11. Nfe5 {[%clk 0:02:54]}  Rc8 {[%clk 0:02:39]} 12. h3 {[%clk 0:02:50]}  O-O {[%clk 0:02:32]} 13. g4 {[%clk 0:02:22]}  Nb4 {[%clk 0:02:30]} 14. Bd2 {[%clk 0:02:09]}  Be6 {[%clk 0:02:11]} 15. a3 {[%clk 0:02:00]}  Nbd5 {[%clk 0:02:07]} 16. f5 {[%clk 0:01:55]}  Bd7 {[%clk 0:01:58]} 17. fxg6 {[%clk 0:01:52]}  hxg6 {[%clk 0:01:45]} 18. g5 {[%clk 0:01:52]}  b5 {[%clk 0:01:23]} 19. gxf6 {[%clk 0:01:47]}  exf6 {[%clk 0:01:23]} 20. Nxd7 {[%clk 0:01:30]}  Qxd7 {[%clk 0:01:22]} 21. Ne3 {[%clk 0:01:31]}  Nxe3 {[%clk 0:01:19]} 22. Bxe3 {[%clk 0:01:32]}  f5 {[%clk 0:01:18]} 23. c3 {[%clk 0:01:21]}  Rfe8 {[%clk 0:01:17]} 24. Bf4 {[%clk 0:01:17]}  b4 {[%clk 0:01:15]} 25. Qd2 {[%clk 0:00:49]}  bxc3 {[%clk 0:01:07]} 26. bxc3 {[%clk 0:00:50]}  Rcd8 {[%clk 0:01:07]} 27. Rad1 {[%clk 0:00:35]}  Qa4 {[%clk 0:01:06]} 28. c4 {[%clk 0:00:27]}  Qxa3 {[%clk 0:00:49]} 29. Bd5 {[%clk 0:00:27]}  Qc3 {[%clk 0:00:41]} 30. Qxc3 {[%clk 0:00:17]}  Bxc3 {[%clk 0:00:42]} 31. Rb1 {[%clk 0:00:17]}  Bd4+ {[%clk 0:00:42]} 32. Kh1 {[%clk 0:00:16]}  Be5 {[%clk 0:00:26]} 33. Rb7 {[%clk 0:00:14]}  Bxf4 {[%clk 0:00:25]} 34. Bxf7+ {[%clk 0:00:13]}  Kf8 {[%clk 0:00:24]} 35. Bxe8 {[%clk 0:00:13]}  Be5 {[%clk 0:00:19]} 36. Bxg6 {[%clk 0:00:10]}  f4 {[%clk 0:00:16]} 37. Rf7+ {[%clk 0:00:06]}  Kg8 {[%clk 0:00:16]} 38. Rf5 {[%clk 0:00:03]}  Bd4 {[%clk 0:00:16]} 39. Bf7+ {[%clk 0:00:03]}  Kg7 {[%clk 0:00:16]} 40. R1xf4 {[%clk 0:00:02]}  Rd6 {[%clk 0:00:17]} 41. Rg4+ {[%clk 0:00:02]}  Kf8 {[%clk 0:00:18]} 42. Bd5+ {[%clk 0:00:03]}  Ke7 {[%clk 0:00:18]} 43. Rf7+ {[%clk 0:00:03]}  Kd8 {[%clk 0:00:19]} 44. Rg8# {[%clk 0:00:04]} 1-0


[Site "https://www.chess.com"]

[Event "Titled Tuesday Blitz October 31 Late 2023"]
[White "Kochiev, Ivan"]
[Black "Szente Varga, Fruzsina"]
[WhiteFideId "2917890"]
[BlackFideId "712264"]
[WhiteElo "2555"]
[BlackElo "2323"]
[Result "1-0"]
[Round "11"]
[TimeControl "180+1"]
[Date "2023.10.31"]
[WhiteClock "0:00:45"]
[BlackClock "0:00:00"]
[Board "76"]

1. e4 {[%clk 0:03:00]}  c5 {[%clk 0:02:59]} 2. Nf3 {[%clk 0:03:00]}  Nc6 {[%clk 0:02:59]} 3. d4 {[%clk 0:03:01]}  cxd4 {[%clk 0:02:58]} 4. Nxd4 {[%clk 0:03:02]}  g6 {[%clk 0:02:58]} 5. c4 {[%clk 0:03:02]}  Bg7 {[%clk 0:02:58]} 6. Be3 {[%clk 0:03:02]}  Nf6 {[%clk 0:02:57]} 7. Nc3 {[%clk 0:03:03]}  O-O {[%clk 0:02:57]} 8. Be2 {[%clk 0:03:03]}  d6 {[%clk 0:02:55]} 9. O-O {[%clk 0:03:03]}  Bd7 {[%clk 0:02:55]} 10. Nc2 {[%clk 0:03:02]}  a5 {[%clk 0:02:44]} 11. Qd2 {[%clk 0:02:56]}  Nb4 {[%clk 0:02:40]} 12. Rfd1 {[%clk 0:02:55]}  Bc6 {[%clk 0:02:36]} 13. f3 {[%clk 0:02:43]}  Nxc2 {[%clk 0:02:29]} 14. Qxc2 {[%clk 0:02:43]}  Nd7 {[%clk 0:02:30]} 15. b3 {[%clk 0:02:41]}  Nc5 {[%clk 0:02:26]} 16. Bxc5 {[%clk 0:02:36]}  a4 {[%clk 0:02:04]} 17. Be3 {[%clk 0:02:27]}  Qa5 {[%clk 0:01:59]} 18. Rac1 {[%clk 0:02:25]}  Rfc8 {[%clk 0:01:50]} 19. Qd2 {[%clk 0:02:19]}  Qh5 {[%clk 0:01:34]} 20. Nd5 {[%clk 0:02:15]}  Bxd5 {[%clk 0:01:33]} 21. cxd5 {[%clk 0:02:15]}  Qh4 {[%clk 0:01:31]} 22. bxa4 {[%clk 0:02:11]}  Be5 {[%clk 0:01:28]} 23. f4 {[%clk 0:02:10]}  Bg7 {[%clk 0:01:27]} 24. Rxc8+ {[%clk 0:02:09]}  Rxc8 {[%clk 0:01:27]} 25. Rc1 {[%clk 0:02:10]}  Ra8 {[%clk 0:01:20]} 26. Qb4 {[%clk 0:01:59]}  h5 {[%clk 0:01:16]} 27. Qd2 {[%clk 0:01:35]}  Rxa4 {[%clk 0:01:14]} 28. Bf2 {[%clk 0:01:35]}  Qf6 {[%clk 0:01:12]} 29. Rb1 {[%clk 0:01:29]}  Rxe4 {[%clk 0:01:07]} 30. Rxb7 {[%clk 0:01:28]}  Qa1+ {[%clk 0:00:45]} 31. Bf1 {[%clk 0:01:26]}  Bd4 {[%clk 0:00:34]} 32. Bxd4 {[%clk 0:01:24]}  Rxd4 {[%clk 0:00:33]} 33. Qe2 {[%clk 0:01:24]}  Rd1 {[%clk 0:00:30]} 34. Rxe7 {[%clk 0:01:23]}  Qd4+ {[%clk 0:00:27]} 35. Kh1 {[%clk 0:01:23]}  Ra1 {[%clk 0:00:23]} 36. h3 {[%clk 0:01:18]}  Qxf4 {[%clk 0:00:19]} 37. Re8+ {[%clk 0:01:08]}  Kh7 {[%clk 0:00:19]} 38. Kg1 {[%clk 0:01:08]}  Qd4+ {[%clk 0:00:18]} 39. Qe3 {[%clk 0:00:57]}  Qxd5 {[%clk 0:00:16]} 40. Qc3 {[%clk 0:00:53]}  Qc5+ {[%clk 0:00:09]} 41. Qxc5 {[%clk 0:00:48]}  dxc5 {[%clk 0:00:10]} 42. Rc8 {[%clk 0:00:49]}  Rxa2 {[%clk 0:00:10]} 43. Rxc5 {[%clk 0:00:49]}  Ra1 {[%clk 0:00:09]} 44. Kf2 {[%clk 0:00:49]}  Kg7 {[%clk 0:00:09]} 45. Bc4 {[%clk 0:00:48]}  f5 {[%clk 0:00:08]} 46. h4 {[%clk 0:00:47]}  Kh6 {[%clk 0:00:04]} 47. Rc7 {[%clk 0:00:46]}  g5 {[%clk 0:00:02]} 48. Rc6+ {[%clk 0:00:46]}  Kg7 {[%clk 0:00:02]} 49. hxg5 {[%clk 0:00:47]}  Rc1 {[%clk 0:00:00]} 50. Kg3 {[%clk 0:00:45]} 1-0


[Site "https://www.chess.com"]

[Event "Titled Tuesday Blitz October 31 Late 2023"]
[White "Quirke, Jeffrey"]
[Black "Su, Dion"]
[WhiteFideId "2013029"]
[BlackFideId "2029731"]
[WhiteElo "2250"]
[BlackElo "2409"]
[Result "1-0"]
[Round "11"]
[TimeControl "180+1"]
[Date "2023.10.31"]
[WhiteClock "0:00:06"]
[BlackClock "0:01:10"]
[Board "81"]

1. e4 {[%clk 0:03:00]}  e6 {[%clk 0:02:59]} 2. Nf3 {[%clk 0:02:56]}  c5 {[%clk 0:02:58]} 3. c3 {[%clk 0:02:42]}  d5 {[%clk 0:02:51]} 4. exd5 {[%clk 0:02:41]}  Qxd5 {[%clk 0:02:51]} 5. d4 {[%clk 0:02:40]}  Nc6 {[%clk 0:02:52]} 6. Be3 {[%clk 0:02:36]}  Nf6 {[%clk 0:02:41]} 7. dxc5 {[%clk 0:02:30]}  Qxd1+ {[%clk 0:02:41]} 8. Kxd1 {[%clk 0:02:31]}  Ng4 {[%clk 0:02:41]} 9. b4 {[%clk 0:02:27]}  Bd7 {[%clk 0:02:37]} 10. Nbd2 {[%clk 0:02:19]}  O-O-O {[%clk 0:02:33]} 11. Be2 {[%clk 0:02:00]}  Nxe3+ {[%clk 0:02:32]} 12. fxe3 {[%clk 0:01:59]}  Be7 {[%clk 0:02:31]} 13. Kc2 {[%clk 0:01:56]}  f5 {[%clk 0:02:27]} 14. Bc4 {[%clk 0:01:47]}  Bf6 {[%clk 0:02:23]} 15. Rad1 {[%clk 0:01:44]}  Rhe8 {[%clk 0:02:23]} 16. Rhe1 {[%clk 0:01:32]}  e5 {[%clk 0:02:20]} 17. e4 {[%clk 0:01:26]}  g6 {[%clk 0:02:18]} 18. Bd5 {[%clk 0:01:23]}  f4 {[%clk 0:02:14]} 19. Nc4 {[%clk 0:01:23]}  Re7 {[%clk 0:02:06]} 20. b5 {[%clk 0:01:05]}  Nb8 {[%clk 0:02:05]} 21. Nd6+ {[%clk 0:01:03]}  Kc7 {[%clk 0:02:04]} 22. Nxb7 {[%clk 0:01:00]}  Rc8 {[%clk 0:01:59]} 23. c6 {[%clk 0:01:00]}  Bg4 {[%clk 0:01:58]} 24. Nc5 {[%clk 0:00:53]}  Kb6 {[%clk 0:01:53]} 25. Nd3 {[%clk 0:00:23]}  Kxb5 {[%clk 0:01:44]} 26. Rb1+ {[%clk 0:00:22]}  Ka5 {[%clk 0:01:42]} 27. c4 {[%clk 0:00:14]}  Nxc6 {[%clk 0:01:38]} 28. Rb5+ {[%clk 0:00:13]}  Ka4 {[%clk 0:01:28]} 29. Nc5+ {[%clk 0:00:13]}  Ka3 {[%clk 0:01:28]} 30. Rb3+ {[%clk 0:00:08]}  Kxa2 {[%clk 0:01:28]} 31. Reb1 {[%clk 0:00:05]}  Nd4+ {[%clk 0:01:10]} 32. Nxd4 {[%clk 0:00:05]}  Rxc5 {[%clk 0:01:10]} 33. R1b2+ {[%clk 0:00:05]}  Ka1 {[%clk 0:01:10]} 34. Ra3# {[%clk 0:00:06]} 1-0


[Site "https://www.chess.com"]

[Event "Titled Tuesday Blitz October 31 Late 2023"]
[White "Broca Jimenez, Fernando"]
[Black "Curtis, John"]
[WhiteFideId "5104742"]
[BlackFideId "3200256"]
[WhiteElo "2262"]
[BlackElo "2185"]
[Result "0-1"]
[Round "11"]
[TimeControl "180+1"]
[Date "2023.10.31"]
[WhiteClock "0:00:16"]
[BlackClock "0:00:40"]
[Board "83"]

1. e4 {[%clk 0:03:00]}  e5 {[%clk 0:02:59]} 2. Nf3 {[%clk 0:03:00]}  Nc6 {[%clk 0:02:46]} 3. Bb5 {[%clk 0:03:00]}  Nge7 {[%clk 0:02:45]} 4. O-O {[%clk 0:02:57]}  Ng6 {[%clk 0:02:45]} 5. d4 {[%clk 0:02:55]}  Nxd4 {[%clk 0:02:46]} 6. Nxd4 {[%clk 0:02:55]}  exd4 {[%clk 0:02:46]} 7. Qxd4 {[%clk 0:02:55]}  c6 {[%clk 0:02:47]} 8. Bd3 {[%clk 0:02:49]}  Qb6 {[%clk 0:02:48]} 9. Qxb6 {[%clk 0:02:48]}  axb6 {[%clk 0:02:48]} 10. Nc3 {[%clk 0:02:48]}  b5 {[%clk 0:02:47]} 11. Be3 {[%clk 0:02:45]}  b4 {[%clk 0:02:41]} 12. Ne2 {[%clk 0:02:45]}  Ne5 {[%clk 0:02:39]} 13. Rfd1 {[%clk 0:02:23]}  Ng4 {[%clk 0:02:29]} 14. Bf4 {[%clk 0:02:06]}  f6 {[%clk 0:02:23]} 15. c3 {[%clk 0:01:59]}  bxc3 {[%clk 0:02:15]} 16. Nxc3 {[%clk 0:01:55]}  b5 {[%clk 0:02:12]} 17. h3 {[%clk 0:01:50]}  Ne5 {[%clk 0:02:12]} 18. Bc2 {[%clk 0:01:40]}  Bb4 {[%clk 0:02:10]} 19. Ne2 {[%clk 0:01:32]}  Ke7 {[%clk 0:02:03]} 20. a3 {[%clk 0:01:29]}  Ba5 {[%clk 0:01:57]} 21. Nd4 {[%clk 0:01:19]}  g6 {[%clk 0:01:57]} 22. Bb3 {[%clk 0:00:45]}  Bc7 {[%clk 0:01:56]} 23. Be3 {[%clk 0:00:28]}  Nc4 {[%clk 0:01:50]} 24. Bxc4 {[%clk 0:00:24]}  bxc4 {[%clk 0:01:50]} 25. Rac1 {[%clk 0:00:24]}  Ba6 {[%clk 0:01:49]} 26. Nc2 {[%clk 0:00:24]}  d6 {[%clk 0:01:40]} 27. Nd4 {[%clk 0:00:18]}  Kd7 {[%clk 0:01:30]} 28. Ne2 {[%clk 0:00:15]}  Rab8 {[%clk 0:01:25]} 29. Bd4 {[%clk 0:00:15]}  Rhf8 {[%clk 0:01:23]} 30. f3 {[%clk 0:00:15]}  c3 {[%clk 0:01:18]} 31. Bxc3 {[%clk 0:00:14]}  Bxe2 {[%clk 0:01:18]} 32. Rd2 {[%clk 0:00:14]}  Bc4 {[%clk 0:01:16]} 33. Bxf6 {[%clk 0:00:09]}  Rxf6 {[%clk 0:01:15]} 34. Rxc4 {[%clk 0:00:10]}  Rb3 {[%clk 0:01:09]} 35. Rdc2 {[%clk 0:00:09]}  Rb6 {[%clk 0:01:03]} 36. b4 {[%clk 0:00:08]}  Bd8 {[%clk 0:01:03]} 37. Rd2 {[%clk 0:00:08]}  Be7 {[%clk 0:01:02]} 38. Kf2 {[%clk 0:00:08]}  Kc7 {[%clk 0:00:59]} 39. Ke2 {[%clk 0:00:09]}  Rf8 {[%clk 0:00:59]} 40. Rdc2 {[%clk 0:00:09]}  Ra8 {[%clk 0:00:59]} 41. R2c3 {[%clk 0:00:09]}  Kd7 {[%clk 0:00:59]} 42. f4 {[%clk 0:00:09]}  c5 {[%clk 0:00:59]} 43. bxc5 {[%clk 0:00:10]}  dxc5 {[%clk 0:00:59]} 44. Rd3+ {[%clk 0:00:10]}  Ke6 {[%clk 0:00:58]} 45. Ke3 {[%clk 0:00:10]}  h5 {[%clk 0:00:57]} 46. g4 {[%clk 0:00:10]}  hxg4 {[%clk 0:00:57]} 47. hxg4 {[%clk 0:00:11]}  Bf6 {[%clk 0:00:57]} 48. f5+ {[%clk 0:00:11]}  Ke7 {[%clk 0:00:55]} 49. Rxc5 {[%clk 0:00:09]}  gxf5 {[%clk 0:00:48]} 50. gxf5 {[%clk 0:00:07]}  Rd8 {[%clk 0:00:44]} 51. Rc7+ {[%clk 0:00:05]}  Ke8 {[%clk 0:00:44]} 52. e5 {[%clk 0:00:05]}  Rxd3+ {[%clk 0:00:44]} 53. Kxd3 {[%clk 0:00:05]}  Bxe5 {[%clk 0:00:44]} 54. Kc4 {[%clk 0:00:05]}  Bxc7 {[%clk 0:00:43]} 55. f6 {[%clk 0:00:05]}  Rxf6 {[%clk 0:00:42]} 56. a4 {[%clk 0:00:06]}  Kd7 {[%clk 0:00:42]} 57. a5 {[%clk 0:00:07]}  Ra6 {[%clk 0:00:41]} 58. Kd4 {[%clk 0:00:08]}  Rxa5 {[%clk 0:00:42]} 59. Kd3 {[%clk 0:00:09]}  Kd6 {[%clk 0:00:42]} 60. Kc4 {[%clk 0:00:09]}  Kc6 {[%clk 0:00:42]} 61. Kc3 {[%clk 0:00:10]}  Be5+ {[%clk 0:00:42]} 62. Kd3 {[%clk 0:00:11]}  Kd5 {[%clk 0:00:43]} 63. Kc2 {[%clk 0:00:11]}  Ra3 {[%clk 0:00:44]} 64. Kb1 {[%clk 0:00:11]}  Rh3 {[%clk 0:00:44]} 65. Kc2 {[%clk 0:00:12]}  Kc4 {[%clk 0:00:44]} 66. Kd2 {[%clk 0:00:12]}  Bd4 {[%clk 0:00:43]} 67. Ke2 {[%clk 0:00:13]}  Re3+ {[%clk 0:00:42]} 68. Kf2 {[%clk 0:00:13]}  Kd3 {[%clk 0:00:42]} 69. Kg2 {[%clk 0:00:14]}  Ke2 {[%clk 0:00:43]} 70. Kg1 {[%clk 0:00:13]}  Kf3 {[%clk 0:00:40]} 71. Kh2 {[%clk 0:00:14]}  Kg4 {[%clk 0:00:39]} 72. Kg2 {[%clk 0:00:14]}  Re2+ {[%clk 0:00:39]} 73. Kf1 {[%clk 0:00:15]}  Ra2 {[%clk 0:00:39]} 74. Ke1 {[%clk 0:00:16]}  Be3 {[%clk 0:00:39]} 75. Kd1 {[%clk 0:00:16]}  Kf3 {[%clk 0:00:39]} 76. Ke1 {[%clk 0:00:16]}  Ra1# {[%clk 0:00:40]} 0-1


[Site "https://www.chess.com"]

[Event "Titled Tuesday Blitz October 31 Late 2023"]
[White "Wanyama, Harold"]
[Black "Vifleemskaia, Svetlana"]
[WhiteFideId "10000380"]
[BlackFideId "4129490"]
[WhiteElo "2420"]
[BlackElo "2289"]
[Result "1-0"]
[Round "11"]
[TimeControl "180+1"]
[Date "2023.10.31"]
[WhiteClock "0:01:26"]
[BlackClock "0:00:00"]
[Board "85"]

1. d4 {[%clk 0:02:55]}  Nf6 {[%clk 0:02:59]} 2. c4 {[%clk 0:02:53]}  e6 {[%clk 0:02:59]} 3. g3 {[%clk 0:02:53]}  Bb4+ {[%clk 0:02:59]} 4. Bd2 {[%clk 0:02:52]}  Qe7 {[%clk 0:03:00]} 5. Bg2 {[%clk 0:02:51]}  Nc6 {[%clk 0:03:00]} 6. Nf3 {[%clk 0:02:51]}  O-O {[%clk 0:02:57]} 7. O-O {[%clk 0:02:51]}  Bxd2 {[%clk 0:02:57]} 8. Nbxd2 {[%clk 0:02:49]}  a5 {[%clk 0:02:56]} 9. e4 {[%clk 0:02:49]}  d6 {[%clk 0:02:55]} 10. e5 {[%clk 0:02:48]}  Nd7 {[%clk 0:02:50]} 11. Re1 {[%clk 0:02:46]}  dxe5 {[%clk 0:02:45]} 12. dxe5 {[%clk 0:02:46]}  Nc5 {[%clk 0:02:40]} 13. Qc2 {[%clk 0:02:44]}  Nb4 {[%clk 0:02:37]} 14. Qc3 {[%clk 0:02:42]}  Rd8 {[%clk 0:02:31]} 15. Re3 {[%clk 0:02:40]}  h6 {[%clk 0:02:14]} 16. b3 {[%clk 0:02:39]}  f5 {[%clk 0:01:29]} 17. a3 {[%clk 0:02:29]}  Nc6 {[%clk 0:01:27]} 18. Rae1 {[%clk 0:02:23]}  Na6 {[%clk 0:01:20]} 19. Nb1 {[%clk 0:02:19]}  Bd7 {[%clk 0:01:15]} 20. h4 {[%clk 0:02:17]}  Be8 {[%clk 0:01:11]} 21. Rd3 {[%clk 0:02:05]}  Rxd3 {[%clk 0:01:10]} 22. Qxd3 {[%clk 0:02:06]}  Rd8 {[%clk 0:01:09]} 23. Qe3 {[%clk 0:02:06]}  Nc5 {[%clk 0:00:57]} 24. Bf1 {[%clk 0:02:01]}  Bh5 {[%clk 0:00:53]} 25. Nbd2 {[%clk 0:01:57]}  Na6 {[%clk 0:00:46]} 26. Ra1 {[%clk 0:01:54]}  Qd7 {[%clk 0:00:40]} 27. Be2 {[%clk 0:01:49]}  b6 {[%clk 0:00:33]} 28. Qc3 {[%clk 0:01:43]}  Nd4 {[%clk 0:00:16]} 29. Nxd4 {[%clk 0:01:39]}  Qxd4 {[%clk 0:00:16]} 30. Qxd4 {[%clk 0:01:39]}  Rxd4 {[%clk 0:00:17]} 31. Bxh5 {[%clk 0:01:38]}  Rxd2 {[%clk 0:00:17]} 32. b4 {[%clk 0:01:37]}  Kf8 {[%clk 0:00:09]} 33. bxa5 {[%clk 0:01:36]}  bxa5 {[%clk 0:00:09]} 34. Rb1 {[%clk 0:01:36]}  Ke7 {[%clk 0:00:09]} 35. Rb7 {[%clk 0:01:34]}  Ra2 {[%clk 0:00:05]} 36. Ra7 {[%clk 0:01:34]}  Nc5 {[%clk 0:00:02]} 37. Rxc7+ {[%clk 0:01:34]}  Nd7 {[%clk 0:00:00]} 38. Rc8 {[%clk 0:01:26]} 1-0


[Site "https://www.chess.com"]

[Event "Titled Tuesday Blitz October 31 Late 2023"]
[White "Guha, Eshan"]
[Black "Sramek, Vojtech"]
[WhiteFideId "30958628"]
[BlackFideId "358681"]
[WhiteElo "2353"]
[BlackElo "2290"]
[Result "0-1"]
[Round "11"]
[TimeControl "180+1"]
[Date "2023.10.31"]
[WhiteClock "0:00:00"]
[BlackClock "0:00:16"]
[Board "86"]

1. b3 {[%clk 0:03:00]}  e5 {[%clk 0:02:58]} 2. Bb2 {[%clk 0:03:01]}  Nc6 {[%clk 0:02:53]} 3. e3 {[%clk 0:03:02]}  Nf6 {[%clk 0:02:52]} 4. Bb5 {[%clk 0:03:02]}  Bd6 {[%clk 0:02:52]} 5. Na3 {[%clk 0:03:00]}  e4 {[%clk 0:02:47]} 6. Nc4 {[%clk 0:02:59]}  Be7 {[%clk 0:02:45]} 7. Bxc6 {[%clk 0:02:58]}  bxc6 {[%clk 0:02:45]} 8. Ne2 {[%clk 0:02:58]}  O-O {[%clk 0:02:44]} 9. O-O {[%clk 0:02:57]}  Re8 {[%clk 0:02:41]} 10. Ne5 {[%clk 0:02:52]}  Ba3 {[%clk 0:02:08]} 11. Nxf7 {[%clk 0:02:29]}  Kxf7 {[%clk 0:02:05]} 12. Bxa3 {[%clk 0:02:29]}  d5 {[%clk 0:02:03]} 13. Nd4 {[%clk 0:02:26]}  Qd7 {[%clk 0:01:53]} 14. f3 {[%clk 0:02:25]}  Kg8 {[%clk 0:01:51]} 15. fxe4 {[%clk 0:02:09]}  dxe4 {[%clk 0:01:52]} 16. Bb2 {[%clk 0:02:04]}  Qd5 {[%clk 0:01:49]} 17. Qe1 {[%clk 0:02:02]}  c5 {[%clk 0:01:22]} 18. Ne2 {[%clk 0:02:01]}  Rf8 {[%clk 0:01:17]} 19. Qg3 {[%clk 0:01:54]}  Kh8 {[%clk 0:00:48]} 20. Nc3 {[%clk 0:01:53]}  Qxd2 {[%clk 0:00:47]} 21. Nxe4 {[%clk 0:01:53]}  Qxc2 {[%clk 0:00:38]} 22. Bxf6 {[%clk 0:01:21]}  gxf6 {[%clk 0:00:37]} 23. Nxf6 {[%clk 0:01:13]}  Ba6 {[%clk 0:00:32]} 24. Rf2 {[%clk 0:01:05]}  Qc3 {[%clk 0:00:30]} 25. Rd1 {[%clk 0:00:18]}  Rxf6 {[%clk 0:00:29]} 26. Qxc7 {[%clk 0:00:17]}  Rxf2 {[%clk 0:00:23]} 27. Rd8+ {[%clk 0:00:15]}  Rf8 {[%clk 0:00:21]} 28. Rd2 {[%clk 0:00:00]}  Qa1+ {[%clk 0:00:16]} 0-1


[Site "https://www.chess.com"]

[Event "Titled Tuesday Blitz October 31 Late 2023"]
[White "Padalka, Artem"]
[Black "Sarkar, Justin"]
[WhiteFideId "14118637"]
[BlackFideId "2010011"]
[WhiteElo "2324"]
[BlackElo "2217"]
[Result "0-1"]
[Round "11"]
[TimeControl "180+1"]
[Date "2023.10.31"]
[WhiteClock "0:00:49"]
[BlackClock "0:00:06"]
[Board "92"]

1. e4 {[%clk 0:02:50]}  c5 {[%clk 0:02:57]} 2. Nf3 {[%clk 0:02:46]}  e6 {[%clk 0:02:56]} 3. c3 {[%clk 0:02:43]}  d5 {[%clk 0:02:49]} 4. exd5 {[%clk 0:02:40]}  exd5 {[%clk 0:02:48]} 5. d4 {[%clk 0:02:41]}  Nc6 {[%clk 0:02:40]} 6. Bb5 {[%clk 0:02:31]}  Bd6 {[%clk 0:02:33]} 7. dxc5 {[%clk 0:02:28]}  Bxc5 {[%clk 0:02:33]} 8. O-O {[%clk 0:02:27]}  Ne7 {[%clk 0:02:32]} 9. Bg5 {[%clk 0:02:27]}  h6 {[%clk 0:02:16]} 10. Bh4 {[%clk 0:02:27]}  O-O {[%clk 0:02:11]} 11. Nbd2 {[%clk 0:02:27]}  Qb6 {[%clk 0:02:05]} 12. a4 {[%clk 0:02:13]}  Nf5 {[%clk 0:01:55]} 13. b4 {[%clk 0:02:11]}  Nxh4 {[%clk 0:01:44]} 14. Nxh4 {[%clk 0:02:09]}  Be7 {[%clk 0:01:43]} 15. Nhf3 {[%clk 0:02:07]}  Bf6 {[%clk 0:01:42]} 16. Rc1 {[%clk 0:02:03]}  Bf5 {[%clk 0:01:34]} 17. Nb3 {[%clk 0:02:03]}  Rad8 {[%clk 0:00:52]} 18. h3 {[%clk 0:02:02]}  d4 {[%clk 0:00:47]} 19. Bxc6 {[%clk 0:01:59]}  dxc3 {[%clk 0:00:33]} 20. Bd5 {[%clk 0:01:56]}  Be6 {[%clk 0:00:28]} 21. b5 {[%clk 0:01:08]}  Bxd5 {[%clk 0:00:26]} 22. Qc2 {[%clk 0:01:08]}  Bxf3 {[%clk 0:00:25]} 23. gxf3 {[%clk 0:01:09]}  Rd5 {[%clk 0:00:22]} 24. Qe4 {[%clk 0:01:04]}  Qd6 {[%clk 0:00:16]} 25. Rc2 {[%clk 0:01:03]}  Rd8 {[%clk 0:00:14]} 26. f4 {[%clk 0:01:00]}  Rd1 {[%clk 0:00:12]} 27. Rc1 {[%clk 0:00:58]}  Rxf1+ {[%clk 0:00:07]} 28. Kxf1 {[%clk 0:00:56]}  Qa3 {[%clk 0:00:06]} 29. Qc2 {[%clk 0:00:53]}  Qb2 {[%clk 0:00:05]} 30. Qxb2 {[%clk 0:00:51]}  cxb2 {[%clk 0:00:05]} 31. Rb1 {[%clk 0:00:52]}  Rd3 {[%clk 0:00:04]} 32. Nc5 {[%clk 0:00:46]}  Rc3 {[%clk 0:00:04]} 33. Rxb2 {[%clk 0:00:45]}  Rc1+ {[%clk 0:00:04]} 34. Kg2 {[%clk 0:00:45]}  Bxb2 {[%clk 0:00:05]} 35. Nd3 {[%clk 0:00:46]}  Rb1 {[%clk 0:00:04]} 36. Kf3 {[%clk 0:00:46]}  Bc3 {[%clk 0:00:05]} 37. Ke4 {[%clk 0:00:46]}  Ra1 {[%clk 0:00:05]} 38. Nc5 {[%clk 0:00:47]}  Ra3 {[%clk 0:00:04]} 39. Nd7 {[%clk 0:00:48]}  Bb4 {[%clk 0:00:04]} 40. Kd5 {[%clk 0:00:48]}  Rxa4 {[%clk 0:00:04]} 41. Ne5 {[%clk 0:00:48]}  a6 {[%clk 0:00:04]} 42. b6 {[%clk 0:00:48]}  Ba5 {[%clk 0:00:04]} 43. Kc5 {[%clk 0:00:48]}  Bxb6+ {[%clk 0:00:04]} 44. Kxb6 {[%clk 0:00:48]}  Rxf4 {[%clk 0:00:04]} 45. Kxb7 {[%clk 0:00:48]}  Rxf2 {[%clk 0:00:04]} 46. Kxa6 {[%clk 0:00:48]}  Rh2 {[%clk 0:00:04]} 47. Kb6 {[%clk 0:00:48]}  Rxh3 {[%clk 0:00:04]} 48. Kc5 {[%clk 0:00:49]}  Rg3 {[%clk 0:00:05]} 49. Kd6 {[%clk 0:00:50]}  h5 {[%clk 0:00:05]} 50. Kd5 {[%clk 0:00:50]}  h4 {[%clk 0:00:05]} 51. Nc6 {[%clk 0:00:51]}  h3 {[%clk 0:00:05]} 52. Ne7+ {[%clk 0:00:52]}  Kh7 {[%clk 0:00:05]} 53. Nf5 {[%clk 0:00:53]}  Rg2 {[%clk 0:00:06]} 54. Ne3 {[%clk 0:00:52]}  h2 {[%clk 0:00:06]} 55. Nxg2 {[%clk 0:00:52]}  h1=Q {[%clk 0:00:06]} 56. Ke5 {[%clk 0:00:49]}  Qxg2 {[%clk 0:00:06]} 0-1


[Site "https://www.chess.com"]